[Event "Early-Titled-Tuesday-Blitz-April-16-2024"]
[Site "Chess.com"]
[Date "2024.04.16"]
[Round "10"]
[White "Bilan_Danila"]
[Black "David_George21"]
[Result "1-0"]
[WhiteElo "2506"]
[BlackElo "2316"]
[TimeControl "180+1"]
[EndTime "9:59:30 PDT"]
[Termination "Bilan_Danila won by checkmate"]

1. d4 {[%clk 0:03:00.9]} 1... Nf6 {[%clk 0:02:56.1]} 2. Nf3 {[%clk 0:03:01.2]}
2... e6 {[%clk 0:02:56.2]} 3. g3 {[%clk 0:03:01.3]} 3... c5 {[%clk 0:02:53.6]}
4. Bg2 {[%clk 0:03:02.2]} 4... d5 {[%clk 0:02:52.2]} 5. O-O {[%clk 0:03:01.9]}
5... Nc6 {[%clk 0:02:51.1]} 6. c4 {[%clk 0:03:02.2]} 6... dxc4 {[%clk
0:02:51.2]} 7. dxc5 {[%clk 0:02:58.6]} 7... Qxd1 {[%clk 0:02:52.1]} 8. Rxd1
{[%clk 0:02:58.7]} 8... Bxc5 {[%clk 0:02:52.3]} 9. Nbd2 {[%clk 0:02:53.2]} 9...
c3 {[%clk 0:02:52.6]} 10. bxc3 {[%clk 0:02:51.9]} 10... O-O {[%clk 0:02:53.2]}
11. Nb3 {[%clk 0:02:48.2]} 11... Be7 {[%clk 0:02:52.3]} 12. Bf4 {[%clk
0:02:44.8]} 12... Nd5 {[%clk 0:02:50.2]} 13. c4 {[%clk 0:02:41.8]} 13... Nxf4
{[%clk 0:02:50]} 14. gxf4 {[%clk 0:02:42.7]} 14... a5 {[%clk 0:02:35.2]} 15.
Rab1 {[%clk 0:02:33.9]} 15... Rb8 {[%clk 0:02:24.1]} 16. Nbd4 {[%clk 0:02:23.6]}
16... Nb4 {[%clk 0:02:11.3]} 17. a3 {[%clk 0:02:20.7]} 17... Na6 {[%clk
0:02:10.3]} 18. Ne5 {[%clk 0:02:14.1]} 18... Bxa3 {[%clk 0:01:40.2]} 19. Nb5
{[%clk 0:01:40.7]} 19... Bb4 {[%clk 0:01:33.9]} 20. Nd6 {[%clk 0:01:33.9]} 20...
f6 {[%clk 0:01:11.6]} 21. Nxc8 {[%clk 0:01:30.8]} 21... fxe5 {[%clk 0:01:08.4]}
22. Nb6 {[%clk 0:01:18.9]} 22... Rxf4 {[%clk 0:01:07.2]} 23. e3 {[%clk
0:01:15.8]} 23... Rf7 {[%clk 0:00:58.7]} 24. Bh3 {[%clk 0:01:10.9]} 24... Nc5
{[%clk 0:00:57.6]} 25. Rb2 {[%clk 0:00:47.2]} 25... e4 {[%clk 0:00:38.8]} 26.
Bg2 {[%clk 0:00:33.6]} 26... Rbf8 {[%clk 0:00:34.5]} 27. Bh3 {[%clk 0:00:24.4]}
27... Nd3 {[%clk 0:00:29]} 28. Re2 {[%clk 0:00:12.4]} 28... Nxf2 {[%clk
0:00:21.6]} 29. Rxf2 {[%clk 0:00:11]} 29... Rxf2 {[%clk 0:00:21]} 30. Bxe6+
{[%clk 0:00:11.9]} 30... Kh8 {[%clk 0:00:20.4]} 31. Nd7 {[%clk 0:00:11.1]} 31...
h5 {[%clk 0:00:06.2]} 32. Nxf8 {[%clk 0:00:09.6]} 32... Rxf8 {[%clk 0:00:07.1]}
33. Rd5 {[%clk 0:00:09.9]} 33... a4 {[%clk 0:00:06.5]} 34. Rxh5# {[%clk
0:00:10]} 1-0

[Event "Early-Titled-Tuesday-Blitz-April-16-2024"]
[Site "Chess.com"]
[Date "2024.04.16"]
[Round "10"]
[White "GrotBchess"]
[Black "Gumugama"]
[Result "1-0"]
[WhiteElo "2457"]
[BlackElo "2279"]
[TimeControl "180+1"]
[EndTime "9:59:34 PDT"]
[Termination "GrotBchess won by resignation"]

1. e4 {[%clk 0:03:00.9]} 1... c5 {[%clk 0:02:55]} 2. Nf3 {[%clk 0:02:58.7]} 2...
d6 {[%clk 0:02:55.1]} 3. Bb5+ {[%clk 0:02:57.6]} 3... Nd7 {[%clk 0:02:54.8]} 4.
c3 {[%clk 0:02:57.2]} 4... Nf6 {[%clk 0:02:54.4]} 5. Qe2 {[%clk 0:02:56.6]} 5...
g6 {[%clk 0:02:53.9]} 6. O-O {[%clk 0:02:55.7]} 6... Bg7 {[%clk 0:02:54.4]} 7.
d4 {[%clk 0:02:56]} 7... cxd4 {[%clk 0:02:52.7]} 8. cxd4 {[%clk 0:02:55.7]} 8...
O-O {[%clk 0:02:51.2]} 9. e5 {[%clk 0:02:55.6]} 9... Nd5 {[%clk 0:02:49.7]} 10.
e6 {[%clk 0:02:54.5]} 10... N7f6 {[%clk 0:02:42.1]} 11. exf7+ {[%clk 0:02:54.2]}
11... Rxf7 {[%clk 0:02:40.7]} 12. Nc3 {[%clk 0:02:51.5]} 12... Nxc3 {[%clk
0:02:36.5]} 13. bxc3 {[%clk 0:02:52.4]} 13... Bg4 {[%clk 0:02:27]} 14. h3 {[%clk
0:02:47.9]} 14... Bxf3 {[%clk 0:02:19.8]} 15. Qxf3 {[%clk 0:02:45.7]} 15... d5
{[%clk 0:02:20.3]} 16. Qe2 {[%clk 0:02:39.7]} 16... Ne4 {[%clk 0:02:16.3]} 17.
Bb2 {[%clk 0:02:31.8]} 17... Rc8 {[%clk 0:02:11.2]} 18. Rac1 {[%clk 0:02:30.3]}
18... Qa5 {[%clk 0:02:04.1]} 19. Bd7 {[%clk 0:02:17.6]} 19... Rcf8 {[%clk
0:01:23.8]} 20. Be6 {[%clk 0:02:16.1]} 20... Qxa2 {[%clk 0:01:22.6]} 21. Qxe4
{[%clk 0:02:07.5]} 21... Qxb2 {[%clk 0:01:17.1]} 22. Qxd5 {[%clk 0:02:03.8]}
22... Bf6 {[%clk 0:01:07.4]} 23. Qc4 {[%clk 0:01:30.2]} 23... Kg7 {[%clk
0:00:57.3]} 24. Bxf7 {[%clk 0:01:28.7]} 24... Rxf7 {[%clk 0:00:57.1]} 25. Rb1
{[%clk 0:01:25.5]} 25... Qd2 {[%clk 0:00:55.5]} 26. Rxb7 {[%clk 0:01:19]} 26...
Bh4 {[%clk 0:00:54.5]} 27. Qe6 {[%clk 0:00:45.4]} 27... Rxf2 {[%clk 0:00:21.9]}
28. Rxe7+ {[%clk 0:00:38.7]} 28... Kh6 {[%clk 0:00:22.3]} 29. Qe3+ {[%clk
0:00:33.9]} 29... Qxe3 {[%clk 0:00:22.9]} 30. Rxe3 {[%clk 0:00:34.2]} 30... Rc2
{[%clk 0:00:22.8]} 31. Rd3 {[%clk 0:00:31.8]} 31... a5 {[%clk 0:00:20.8]} 32. d5
{[%clk 0:00:32]} 32... a4 {[%clk 0:00:20.2]} 33. d6 {[%clk 0:00:31.6]} 33... a3
{[%clk 0:00:20.6]} 34. d7 {[%clk 0:00:31.4]} 34... Bd8 {[%clk 0:00:20.9]} 35. c4
{[%clk 0:00:23.6]} 35... a2 {[%clk 0:00:21]} 36. Ra1 {[%clk 0:00:22.1]} 36...
Rb2 {[%clk 0:00:16.7]} 37. Rdd1 {[%clk 0:00:20.2]} 37... Bb6+ {[%clk 0:00:16.7]}
38. Kh1 {[%clk 0:00:19.3]} 38... Kg5 {[%clk 0:00:15.8]} 39. d8=Q+ {[%clk
0:00:18.3]} 39... Bxd8 {[%clk 0:00:15.2]} 40. Rxd8 {[%clk 0:00:19.2]} 40... Rb1+
{[%clk 0:00:15]} 41. Rd1 {[%clk 0:00:19.8]} 1-0

[Event "Early-Titled-Tuesday-Blitz-April-16-2024"]
[Site "Chess.com"]
[Date "2024.04.16"]
[Round "10"]
[White "francyIM"]
[Black "platy3"]
[Result "1-0"]
[WhiteElo "2823"]
[BlackElo "2902"]
[TimeControl "180+1"]
[EndTime "9:59:39 PDT"]
[Termination "francyIM won by resignation"]

1. Nf3 {[%clk 0:03:00.9]} 1... d5 {[%clk 0:02:48.8]} 2. e3 {[%clk 0:03:00.7]}
2... Nf6 {[%clk 0:02:45.4]} 3. c4 {[%clk 0:03:00.6]} 3... e6 {[%clk 0:02:45.1]}
4. b3 {[%clk 0:02:54.6]} 4... c5 {[%clk 0:02:40.9]} 5. Bb2 {[%clk 0:02:55]} 5...
Nc6 {[%clk 0:02:39.8]} 6. g3 {[%clk 0:02:54.5]} 6... d4 {[%clk 0:02:38.1]} 7.
exd4 {[%clk 0:02:55.4]} 7... cxd4 {[%clk 0:02:38.4]} 8. Bg2 {[%clk 0:02:50.8]}
8... e5 {[%clk 0:02:38.4]} 9. O-O {[%clk 0:02:51.2]} 9... Bd6 {[%clk 0:02:37.7]}
10. d3 {[%clk 0:02:50.5]} 10... O-O {[%clk 0:02:37.8]} 11. a3 {[%clk 0:02:38.8]}
11... a5 {[%clk 0:02:37.9]} 12. Nbd2 {[%clk 0:02:38.9]} 12... Bf5 {[%clk
0:02:38.1]} 13. Qe2 {[%clk 0:02:39]} 13... h6 {[%clk 0:02:37.4]} 14. Ne1 {[%clk
0:02:36.5]} 14... Re8 {[%clk 0:02:35.2]} 15. Ne4 {[%clk 0:02:36.3]} 15... Nxe4
{[%clk 0:02:31.1]} 16. dxe4 {[%clk 0:02:36.4]} 16... Be6 {[%clk 0:02:28.3]} 17.
Nd3 {[%clk 0:02:37.3]} 17... Qb6 {[%clk 0:02:11.6]} 18. Qc2 {[%clk 0:02:36.3]}
18... Qa6 {[%clk 0:02:12]} 19. Rfc1 {[%clk 0:02:35.4]} 19... Rac8 {[%clk
0:02:11.9]} 20. Bf1 {[%clk 0:02:34.9]} 20... Bf8 {[%clk 0:00:43.5]} 21. b4
{[%clk 0:02:30.1]} 21... Qb6 {[%clk 0:00:39.4]} 22. c5 {[%clk 0:02:26.6]} 22...
Qd8 {[%clk 0:00:37]} 23. b5 {[%clk 0:02:26]} 23... Nb8 {[%clk 0:00:37.3]} 24. a4
{[%clk 0:02:26.2]} 24... Nd7 {[%clk 0:00:35.1]} 25. Ba3 {[%clk 0:02:26.3]} 25...
Nxc5 {[%clk 0:00:27.1]} 26. Bxc5 {[%clk 0:02:21.7]} 26... b6 {[%clk 0:00:27.5]}
27. Bxb6 {[%clk 0:02:21]} 27... Qxb6 {[%clk 0:00:27.5]} 28. Qb2 {[%clk
0:02:20.8]} 28... Bd6 {[%clk 0:00:24.6]} 29. Rxc8 {[%clk 0:02:15.8]} 29... Rxc8
{[%clk 0:00:24.5]} 30. Rc1 {[%clk 0:02:16.7]} 30... Rxc1 {[%clk 0:00:17.7]} 31.
Qxc1 {[%clk 0:02:17.6]} 31... Qc7 {[%clk 0:00:12.3]} 32. Qxc7 {[%clk 0:02:16.1]}
32... Bxc7 {[%clk 0:00:13.2]} 33. Nb2 {[%clk 0:02:16.1]} 33... Kf8 {[%clk
0:00:10.7]} 34. Bc4 {[%clk 0:02:16.3]} 34... Bc8 {[%clk 0:00:04.6]} 35. f3
{[%clk 0:02:14.6]} 35... Ke7 {[%clk 0:00:04.7]} 36. Kf2 {[%clk 0:02:10.8]} 36...
f6 {[%clk 0:00:04.8]} 37. Ke2 {[%clk 0:02:10.2]} 37... Kd6 {[%clk 0:00:05.1]}
38. Bd5 {[%clk 0:02:07.4]} 38... Kc5 {[%clk 0:00:04.9]} 39. Nd3+ {[%clk
0:02:07.6]} 39... Kd6 {[%clk 0:00:05.3]} 40. Kd2 {[%clk 0:02:08.2]} 40... f5
{[%clk 0:00:04.7]} 41. Bc6 {[%clk 0:02:03.7]} 41... g6 {[%clk 0:00:04.6]} 42. f4
{[%clk 0:02:02.5]} 42... exf4 {[%clk 0:00:04]} 43. e5+ {[%clk 0:02:02.7]} 43...
Ke7 {[%clk 0:00:03.8]} 44. gxf4 {[%clk 0:02:03.1]} 44... g5 {[%clk 0:00:04.4]}
45. Ke2 {[%clk 0:02:02.5]} 45... Be6 {[%clk 0:00:03.1]} 46. Kf3 {[%clk
0:02:01.9]} 46... Bb3 {[%clk 0:00:02.9]} 47. Nc5 {[%clk 0:02:01.9]} 47... Bd1+
{[%clk 0:00:03.3]} 48. Kg3 {[%clk 0:02:02.1]} 48... Bc2 {[%clk 0:00:02.8]} 49.
Kf3 {[%clk 0:01:58.5]} 49... Bb6 {[%clk 0:00:03.2]} 50. Nd7 {[%clk 0:01:56.7]}
50... Bc7 {[%clk 0:00:03.8]} 51. b6 {[%clk 0:01:55.8]} 51... Bd8 {[%clk
0:00:02.3]} 52. b7 {[%clk 0:01:55.5]} 52... Bc7 {[%clk 0:00:02.9]} 53. b8=Q
{[%clk 0:01:56.1]} 53... Bxb8 {[%clk 0:00:03.5]} 54. Nxb8 {[%clk 0:01:57]} 54...
d3 {[%clk 0:00:03]} 55. Ke3 {[%clk 0:01:56.8]} 55... gxf4+ {[%clk 0:00:03.5]}
56. Kd2 {[%clk 0:01:57.3]} 56... Ke6 {[%clk 0:00:03.5]} 57. Nd7 {[%clk
0:01:57.8]} 57... f3 {[%clk 0:00:03.8]} 58. Nc5+ {[%clk 0:01:57.3]} 58... Kxe5
{[%clk 0:00:04.4]} 59. Nxd3+ {[%clk 0:01:57.1]} 59... Kd4 {[%clk 0:00:03.6]} 60.
Nf2 {[%clk 0:01:56.1]} 60... Be4 {[%clk 0:00:02.6]} 61. Bb5 {[%clk 0:01:56.4]}
61... Bd5 {[%clk 0:00:02.4]} 62. Nd1 {[%clk 0:01:56.4]} 62... Ke5 {[%clk
0:00:02.6]} 63. Ke1 {[%clk 0:01:57]} 63... Be4 {[%clk 0:00:02.8]} 64. Kf2 {[%clk
0:01:57.4]} 64... Kf4 {[%clk 0:00:02.8]} 65. Nc3 {[%clk 0:01:57.9]} 65... Ke5
{[%clk 0:00:01.6]} 66. Nxe4 {[%clk 0:01:57.4]} 66... fxe4 {[%clk 0:00:02.5]} 67.
Ke3 {[%clk 0:01:58.3]} 67... Kf5 {[%clk 0:00:03]} 68. Bc6 {[%clk 0:01:58.8]}
68... Kg4 {[%clk 0:00:03.3]} 69. Bxe4 {[%clk 0:01:59.4]} 69... Kh3 {[%clk
0:00:04]} 70. Kxf3 {[%clk 0:01:59.6]} 70... Kxh2 {[%clk 0:00:04.6]} 71. Kf2
{[%clk 0:02:00.3]} 71... Kh3 {[%clk 0:00:05]} 72. Kf3 {[%clk 0:02:00.1]} 72...
h5 {[%clk 0:00:05.4]} 73. Kf4 {[%clk 0:02:00.4]} 73... h4 {[%clk 0:00:05.6]} 74.
Kg5 {[%clk 0:02:00.6]} 74... Kg3 {[%clk 0:00:06]} 75. Kf5 {[%clk 0:02:01.2]}
75... h3 {[%clk 0:00:06.3]} 76. Ke5 {[%clk 0:02:01.9]} 76... Kg4 {[%clk
0:00:06.5]} 77. Kd5 {[%clk 0:02:02.4]} 77... Kf4 {[%clk 0:00:06.9]} 78. Bh1
{[%clk 0:02:02.3]} 78... Ke3 {[%clk 0:00:07.4]} 79. Kc5 {[%clk 0:02:03]} 1-0

[Event "Early-Titled-Tuesday-Blitz-April-16-2024"]
[Site "Chess.com"]
[Date "2024.04.16"]
[Round "10"]
[White "BenchGM"]
[Black "Kotofeyca"]
[Result "0-1"]
[WhiteElo "2312"]
[BlackElo "2476"]
[TimeControl "180+1"]
[EndTime "9:59:40 PDT"]
[Termination "Kotofeyca won on time"]

1. e4 {[%clk 0:03:00]} 1... c5 {[%clk 0:02:59]} 2. Nf3 {[%clk 0:03:00]} 2... d6
{[%clk 0:02:59.2]} 3. d4 {[%clk 0:03:00.1]} 3... cxd4 {[%clk 0:03:00.1]} 4. Nxd4
{[%clk 0:03:00.5]} 4... Nf6 {[%clk 0:03:00.7]} 5. Nc3 {[%clk 0:03:00.6]} 5... a6
{[%clk 0:03:01.2]} 6. Rg1 {[%clk 0:02:59.7]} 6... b5 {[%clk 0:03:00]} 7. a4
{[%clk 0:02:44.5]} 7... b4 {[%clk 0:02:58.7]} 8. Nd5 {[%clk 0:02:44.2]} 8...
Nxe4 {[%clk 0:02:53]} 9. Qf3 {[%clk 0:02:11.2]} 9... Nc5 {[%clk 0:02:50.3]} 10.
c3 {[%clk 0:01:13.8]} 10... Bb7 {[%clk 0:02:17.7]} 11. cxb4 {[%clk 0:01:13]}
11... e6 {[%clk 0:02:17]} 12. bxc5 {[%clk 0:01:01.9]} 12... Bxd5 {[%clk
0:02:14.8]} 13. Qe3 {[%clk 0:00:32.7]} 13... dxc5 {[%clk 0:02:14.2]} 14. Nf5
{[%clk 0:00:32.7]} 14... Nc6 {[%clk 0:02:00.6]} 15. Bd2 {[%clk 0:00:30.8]} 15...
Qb8 {[%clk 0:01:41.2]} 16. Bc3 {[%clk 0:00:29.6]} 16... Qxh2 {[%clk 0:01:39.1]}
17. f3 {[%clk 0:00:26]} 17... Nb4 {[%clk 0:00:58]} 18. O-O-O {[%clk 0:00:25.4]}
18... Na2+ {[%clk 0:00:54.6]} 19. Kc2 {[%clk 0:00:19.9]} 19... Nxc3 {[%clk
0:00:54]} 20. bxc3 {[%clk 0:00:19.2]} 20... g6 {[%clk 0:00:39.1]} 21. Rxd5
{[%clk 0:00:13.7]} 21... gxf5 {[%clk 0:00:35.1]} 22. Bc4 {[%clk 0:00:08]} 22...
Bh6 {[%clk 0:00:29.1]} 23. Qxc5 {[%clk 0:00:04.9]} 23... exd5 {[%clk 0:00:15.1]}
24. Re1+ {[%clk 0:00:04.8]} 24... Kd7 {[%clk 0:00:12.3]} 25. Re7+ {[%clk
0:00:03.7]} 25... Kd8 {[%clk 0:00:11.5]} 26. Rxf7 {[%clk 0:00:02.3]} 26... Qxg2+
{[%clk 0:00:06.9]} 27. Kb1 {[%clk 0:00:01.2]} 27... Rb8+ {[%clk 0:00:06.7]} 28.
Bb5 {[%clk 0:00:01.3]} 28... Qg1+ {[%clk 0:00:04.6]} 29. Qxg1 {[%clk 0:00:01.2]}
29... axb5 {[%clk 0:00:04.5]} 30. Qc5 {[%clk 0:00:01.1]} 30... bxa4+ {[%clk
0:00:04.4]} 0-1

[Event "Early-Titled-Tuesday-Blitz-April-16-2024"]
[Site "Chess.com"]
[Date "2024.04.16"]
[Round "10"]
[White "Eloist"]
[Black "Massakru"]
[Result "0-1"]
[WhiteElo "2470"]
[BlackElo "2377"]
[TimeControl "180+1"]
[EndTime "9:59:46 PDT"]
[Termination "Massakru won on time"]

1. e4 {[%clk 0:03:00.9]} 1... e5 {[%clk 0:02:59.7]} 2. Bc4 {[%clk 0:02:59.7]}
2... Nf6 {[%clk 0:02:59.3]} 3. d3 {[%clk 0:03:00]} 3... Nc6 {[%clk 0:02:58.3]}
4. Nf3 {[%clk 0:03:00.2]} 4... h6 {[%clk 0:02:57.4]} 5. O-O {[%clk 0:02:58.2]}
5... d6 {[%clk 0:02:55.7]} 6. c3 {[%clk 0:02:56]} 6... Be7 {[%clk 0:02:55.8]} 7.
Re1 {[%clk 0:02:49.1]} 7... g5 {[%clk 0:02:54.7]} 8. a4 {[%clk 0:02:31.6]} 8...
g4 {[%clk 0:02:53.4]} 9. Nfd2 {[%clk 0:02:30.8]} 9... a6 {[%clk 0:02:51.8]} 10.
Nf1 {[%clk 0:02:26.2]} 10... h5 {[%clk 0:02:50.8]} 11. Bg5 {[%clk 0:02:19.5]}
11... Be6 {[%clk 0:02:38.4]} 12. Bxe6 {[%clk 0:02:14.9]} 12... fxe6 {[%clk
0:02:38.5]} 13. d4 {[%clk 0:02:07.2]} 13... Qd7 {[%clk 0:02:32.5]} 14. Bxf6
{[%clk 0:01:58.5]} 14... Bxf6 {[%clk 0:02:32.4]} 15. d5 {[%clk 0:01:58.7]} 15...
Ne7 {[%clk 0:02:24.9]} 16. Ne3 {[%clk 0:01:53.7]} 16... O-O-O {[%clk 0:02:22.4]}
17. c4 {[%clk 0:01:46.4]} 17... Bg5 {[%clk 0:02:16.4]} 18. Nc3 {[%clk
0:01:45.7]} 18... Bxe3 {[%clk 0:02:12.9]} 19. Rxe3 {[%clk 0:01:44.7]} 19... Rdf8
{[%clk 0:02:09.9]} 20. b4 {[%clk 0:01:43.7]} 20... Ng6 {[%clk 0:02:06]} 21. c5
{[%clk 0:01:34.2]} 21... Qf7 {[%clk 0:02:02.9]} 22. Ra2 {[%clk 0:01:32.3]} 22...
exd5 {[%clk 0:01:59.3]} 23. Nxd5 {[%clk 0:01:22.2]} 23... Nf4 {[%clk 0:01:58.1]}
24. cxd6 {[%clk 0:01:13.2]} 24... cxd6 {[%clk 0:01:58.2]} 25. Rc3+ {[%clk
0:01:04.7]} 25... Kb8 {[%clk 0:01:57.9]} 26. Rc7 {[%clk 0:01:03.8]} 26... Qe6
{[%clk 0:01:27]} 27. b5 {[%clk 0:00:55.4]} 27... Rf7 {[%clk 0:01:10.1]} 28. Rxf7
{[%clk 0:00:51.9]} 28... Qxf7 {[%clk 0:01:09.4]} 29. bxa6 {[%clk 0:00:50.4]}
29... Nxd5 {[%clk 0:01:09]} 30. exd5 {[%clk 0:00:47.1]} 30... Rc8 {[%clk
0:00:57.1]} 31. Rb2 {[%clk 0:00:42.9]} 31... Rc7 {[%clk 0:00:56.5]} 32. g3
{[%clk 0:00:28.3]} 32... Ka8 {[%clk 0:00:41.1]} 33. Qd3 {[%clk 0:00:23.9]} 33...
e4 {[%clk 0:00:32.7]} 34. axb7+ {[%clk 0:00:22.5]} 34... Kb8 {[%clk 0:00:32.9]}
35. Qxe4 {[%clk 0:00:18.4]} 35... Re7 {[%clk 0:00:33]} 36. Qb1 {[%clk
0:00:11.4]} 36... Qxd5 {[%clk 0:00:21.7]} 37. a5 {[%clk 0:00:09.1]} 37... Qxa5
{[%clk 0:00:20.2]} 38. Rb4 {[%clk 0:00:03]} 38... Qd5 {[%clk 0:00:10.3]} 0-1

[Event "Early-Titled-Tuesday-Blitz-April-16-2024"]
[Site "Chess.com"]
[Date "2024.04.16"]
[Round "10"]
[White "dvglko"]
[Black "SharapovEvgeny"]
[Result "1-0"]
[WhiteElo "2514"]
[BlackElo "2649"]
[TimeControl "180+1"]
[EndTime "9:59:47 PDT"]
[Termination "dvglko won by checkmate"]

1. e4 {[%clk 0:02:59.3]} 1... c5 {[%clk 0:02:59.8]} 2. Nf3 {[%clk 0:02:58.8]}
2... d6 {[%clk 0:03:00]} 3. Bb5+ {[%clk 0:02:58.7]} 3... Nd7 {[%clk 0:02:59.9]}
4. O-O {[%clk 0:02:57.6]} 4... Nf6 {[%clk 0:02:59]} 5. Re1 {[%clk 0:02:56.4]}
5... e5 {[%clk 0:02:58.8]} 6. c3 {[%clk 0:02:49.3]} 6... Be7 {[%clk 0:02:58.7]}
7. d4 {[%clk 0:02:48]} 7... Qc7 {[%clk 0:02:58.7]} 8. dxe5 {[%clk 0:02:40.2]}
8... dxe5 {[%clk 0:02:58.3]} 9. Nh4 {[%clk 0:02:31.3]} 9... O-O {[%clk
0:02:46.4]} 10. Nf5 {[%clk 0:02:29.9]} 10... Re8 {[%clk 0:02:46.1]} 11. Qf3
{[%clk 0:02:10.5]} 11... Bf8 {[%clk 0:02:46]} 12. Bg5 {[%clk 0:02:04.6]} 12...
Re6 {[%clk 0:02:35.3]} 13. Bc4 {[%clk 0:01:57.9]} 13... Rb6 {[%clk 0:02:29.3]}
14. Nd2 {[%clk 0:01:41.1]} 14... g6 {[%clk 0:02:15.6]} 15. Nh6+ {[%clk
0:01:20.8]} 15... Bxh6 {[%clk 0:02:15.1]} 16. Bxh6 {[%clk 0:01:21.7]} 16... Nf8
{[%clk 0:02:14.9]} 17. a4 {[%clk 0:01:16.8]} 17... Bg4 {[%clk 0:02:07.9]} 18.
Qg3 {[%clk 0:01:00.9]} 18... Be6 {[%clk 0:02:07.4]} 19. Bxe6 {[%clk 0:00:36.9]}
19... Rxe6 {[%clk 0:02:02.1]} 20. Nc4 {[%clk 0:00:37.2]} 20... Rd8 {[%clk
0:01:46]} 21. Rad1 {[%clk 0:00:37.1]} 21... Rxd1 {[%clk 0:01:45.4]} 22. Rxd1
{[%clk 0:00:38]} 22... Nxe4 {[%clk 0:01:21.3]} 23. Qd3 {[%clk 0:00:14.6]} 23...
Nf6 {[%clk 0:00:42.4]} 24. Qd8 {[%clk 0:00:14.6]} 24... Qxd8 {[%clk 0:00:38.7]}
25. Rxd8 {[%clk 0:00:15.5]} 25... Re8 {[%clk 0:00:36.2]} 26. Rxe8 {[%clk
0:00:14.4]} 26... Nxe8 {[%clk 0:00:36.3]} 27. Nxe5 {[%clk 0:00:14.9]} 27... f6
{[%clk 0:00:31.2]} 28. Bxf8 {[%clk 0:00:13.7]} 28... Kxf8 {[%clk 0:00:30.3]} 29.
Nd7+ {[%clk 0:00:14.5]} 29... Ke7 {[%clk 0:00:30.6]} 30. Nxc5 {[%clk 0:00:15.4]}
30... b6 {[%clk 0:00:28]} 31. Nd3 {[%clk 0:00:16]} 31... Kd6 {[%clk 0:00:27.5]}
32. f3 {[%clk 0:00:16.4]} 32... Kd5 {[%clk 0:00:27.4]} 33. b3 {[%clk 0:00:16.4]}
33... Nd6 {[%clk 0:00:19.5]} 34. Kf2 {[%clk 0:00:16.8]} 34... Nb7 {[%clk
0:00:17.8]} 35. Ke3 {[%clk 0:00:13.7]} 35... Na5 {[%clk 0:00:17.9]} 36. Nc1
{[%clk 0:00:08.9]} 36... f5 {[%clk 0:00:17.5]} 37. Kd3 {[%clk 0:00:09]} 37... g5
{[%clk 0:00:17.4]} 38. c4+ {[%clk 0:00:08.6]} 38... Ke5 {[%clk 0:00:15.6]} 39.
b4 {[%clk 0:00:07.9]} 39... Nc6 {[%clk 0:00:15.3]} 40. Kc3 {[%clk 0:00:07.5]}
40... Kf4 {[%clk 0:00:14.9]} 41. b5 {[%clk 0:00:06.1]} 41... Na5 {[%clk
0:00:14.5]} 42. Kd4 {[%clk 0:00:06.1]} 42... Nb7 {[%clk 0:00:13.3]} 43. Nd3#
{[%clk 0:00:06.6]} 1-0

[Event "Early-Titled-Tuesday-Blitz-April-16-2024"]
[Site "Chess.com"]
[Date "2024.04.16"]
[Round "10"]
[White "mapleaff"]
[Black "Alenzer"]
[Result "0-1"]
[WhiteElo "2249"]
[BlackElo "2211"]
[TimeControl "180+1"]
[EndTime "9:59:47 PDT"]
[Termination "Alenzer won on time"]

1. d4 {[%clk 0:03:00.9]} 1... d5 {[%clk 0:02:59]} 2. Bf4 {[%clk 0:02:59.6]} 2...
c5 {[%clk 0:02:58.4]} 3. e3 {[%clk 0:02:59.8]} 3... Nc6 {[%clk 0:02:57.2]} 4.
Nf3 {[%clk 0:03:00.3]} 4... Nf6 {[%clk 0:02:56.2]} 5. Nbd2 {[%clk 0:03:00.7]}
5... Qb6 {[%clk 0:02:52]} 6. dxc5 {[%clk 0:03:00.4]} 6... Qxc5 {[%clk
0:02:52.2]} 7. Nb3 {[%clk 0:02:58.4]} 7... Qb6 {[%clk 0:02:47.1]} 8. c3 {[%clk
0:02:58.8]} 8... Bf5 {[%clk 0:02:45.5]} 9. Be2 {[%clk 0:02:51.9]} 9... e6 {[%clk
0:02:44.7]} 10. h3 {[%clk 0:02:50.8]} 10... Be7 {[%clk 0:02:44.8]} 11. O-O
{[%clk 0:02:51.2]} 11... O-O {[%clk 0:02:44.9]} 12. Nh4 {[%clk 0:02:37.2]} 12...
Be4 {[%clk 0:02:41.5]} 13. f3 {[%clk 0:02:35.8]} 13... Bg6 {[%clk 0:02:41.4]}
14. Nxg6 {[%clk 0:02:35.5]} 14... hxg6 {[%clk 0:02:40.9]} 15. Qd2 {[%clk
0:02:05]} 15... a5 {[%clk 0:02:31.8]} 16. Bg5 {[%clk 0:02:00.3]} 16... a4 {[%clk
0:02:28.7]} 17. Nd4 {[%clk 0:02:00.7]} 17... e5 {[%clk 0:02:28.4]} 18. Nxc6
{[%clk 0:01:57.2]} 18... bxc6 {[%clk 0:02:28.6]} 19. Rae1 {[%clk 0:01:42.9]}
19... Bc5 {[%clk 0:02:26.5]} 20. Bd1 {[%clk 0:01:37.9]} 20... Nh5 {[%clk
0:02:21.9]} 21. Kh2 {[%clk 0:01:19.3]} 21... f6 {[%clk 0:02:01.9]} 22. Bh4
{[%clk 0:01:19.1]} 22... g5 {[%clk 0:02:02.1]} 23. Bf2 {[%clk 0:01:15.8]} 23...
g6 {[%clk 0:01:53.1]} 24. b4 {[%clk 0:00:42.2]} 24... axb3 {[%clk 0:01:52.1]}
25. axb3 {[%clk 0:00:43.1]} 25... Ng7 {[%clk 0:01:27.2]} 26. b4 {[%clk
0:00:42.6]} 26... Be7 {[%clk 0:01:26.9]} 27. Bc2 {[%clk 0:00:37.5]} 27... f5
{[%clk 0:01:24.5]} 28. e4 {[%clk 0:00:35.4]} 28... Qc7 {[%clk 0:01:11.3]} 29.
exd5 {[%clk 0:00:15.7]} 29... e4+ {[%clk 0:00:55.9]} 30. Kg1 {[%clk 0:00:16]}
30... exf3 {[%clk 0:00:52.8]} 31. gxf3 {[%clk 0:00:12.1]} 31... cxd5 {[%clk
0:00:46]} 32. Qxd5+ {[%clk 0:00:11.4]} 32... Kh7 {[%clk 0:00:46.6]} 33. Qe5
{[%clk 0:00:04.2]} 33... Bd6 {[%clk 0:00:42.5]} 34. Qe3 {[%clk 0:00:03.5]} 34...
Rae8 {[%clk 0:00:37.7]} 35. Qxg5 {[%clk 0:00:03.1]} 35... Bf4 {[%clk 0:00:31.2]}
36. Qh4+ {[%clk 0:00:02.8]} 36... Nh5 {[%clk 0:00:27.9]} 37. Bd4 {[%clk
0:00:01.7]} 37... Rxe1 {[%clk 0:00:22]} 38. Rxe1 {[%clk 0:00:01.5]} 38... Bg3
{[%clk 0:00:22.2]} 0-1